[Event "BL Meisterschaftsturnier 2020"]
[Site "Karlsruhe"]
[Date "2020.09.17"]
[Round "3.10"]
[White "Bogner, Sebastian"]
[Black "Heimann, Andreas"]
[Result "1-0"]
[ECO "A06"]
[WhiteElo "2571"]
[BlackElo "2617"]
[Annotator "ChessBase"]
[PlyCount "63"]
[EventDate "2020.09.16"]
[EventType "team-tourn"]
[EventCountry "GER"]
[WhiteTeam "Bayern Muenchen"]
[BlackTeam "Deizisau"]
[TimeControl "40/5400+30:1800+30"]

1. Nf3 {[%emt 0:00:00]} d5 {[%emt 0:00:00]} 2. e3 {[%emt 0:00:09]} c5 {[%emt 0:01:01]} 3. c4 {[%emt 0:00:06]} d4 {[%emt 0:00:03]} 4. exd4 {[%emt 0:00:53]} cxd4 {[%emt 0:00:08]} 5. g3 {[%emt 0:00:20]} Nc6 {[%emt 0:02:01]} 6. Bg2 {[%emt 0:00:08]} e5 {[%emt 0:07:07]} 7. O-O {[%emt 0:00:07]} Nf6 {[%emt 0:00:58]} 8. Re1 {[%emt 0:02:01]} Nd7 {[%emt 0:00:33]} 9. d3 {[%emt 0:01:37]} Be7 {[%emt 0:02:52]} 10. Na3 {[%emt 0:15:43]} O-O {[%emt 0:00:40]} 11. Nc2 {[%emt 0:00:09]} a5 {[%emt 0:01:09]} 12. Na3 {[%emt 0:04:28]} Bb4 {[%emt 0:14:39]} 13. Bd2 {[%emt 0:04:40]} Re8 {[%emt 0:04:28]} 14. Nb5 {[%emt 0:19:34]} Nc5 {[%emt 0:03:19]} 15. Ng5 {[%emt 0:10:28]} Bg4 {[%emt 0:12:24]} 16. Qxg4 {[%emt 0:15:28]} Bxd2 {[%emt 0:02:14]} 17. Ne4 {[%emt 0:00:03]} Bxe1 {[%emt 0:06:35]} 18. Nxc5 {[%emt 0:00:04]} Bb4 {[%emt 0:09:16]} 19. Nxb7 {[%emt 0:00:40]} Qc8 {[%emt 0:00:24]} 20. Qxc8 {[%emt 0:03:26]} Rexc8 {[%emt 0:00:07]} 21. c5 {[%emt 0:02:34]} Rab8 {[%emt 0:09:37]} 22. N7d6 {[%emt 0:00:55]} Ne7 {[%emt 0:10:21]} 23. Nxc8 {[%emt 0:00:59]} Nxc8 {[%emt 0:05:50]} 24. Nc7 {[%emt 0:02:01]} Bd2 {[%emt 0:03:11]} 25. Rb1 {[%emt 0:00:29]} Ne7 {[%emt 0:01:25]} 26. Na6 {[%emt 0:02:29]} Rb5 {[%emt 0:00:06]} 27. b3 {[%emt 0:00:34]} a4 {[%emt 0:01:22]} 28. b4 {[%emt 0:00:45]} a3 {[%emt 0:00:15]} 29. Rb3 {[%emt 0:00:30]} f5 {[%emt 0:01:09]} 30. Rxa3 {[%emt 0:03:06]} e4 {[%emt 0:00:09]} 31. dxe4 {[%emt 0:02:39]} Nc6 {[%emt 0:00:05]} 32. Bf1 {[%emt 0:00:53]} 1-0

[Event "BL Meisterschaftsturnier 2020"]
[Site "Karlsruhe"]
[Date "2020.09.17"]
[Round "3.10"]
[White "Baldauf, Marco"]
[Black "Wojtaszek, Radoslaw"]
[Result "1/2-1/2"]
[ECO "E35"]
[WhiteElo "2503"]
[BlackElo "2717"]
[Annotator "ChessBase"]
[PlyCount "81"]
[EventDate "2020.09.16"]
[EventType "team-tourn"]
[EventCountry "GER"]
[WhiteTeam "SF Berlin"]
[BlackTeam "Baden-Baden"]
[TimeControl "40/5400+30:1800+30"]

1. d4 {[%emt 0:00:00]} Nf6 {[%emt 0:00:00]} 2. c4 {[%emt 0:00:00]} e6 {[%emt 0:00:00]} 3. Nc3 {[%emt 0:00:00]} Bb4 {[%emt 0:00:00]} 4. Qc2 {[%emt 0:00:00]} d5 {[%emt 0:00:01]} 5. cxd5 {[%emt 0:00:20]} exd5 {[%emt 0:00:07]} 6. Bg5 {[%emt 0:00:13]} h6 {[%emt 0:00:11]} 7. Bh4 {[%emt 0:00:07]} Nc6 {[%emt 0:00:19]} 8. e3 {[%emt 0:01:05]} g5 {[%emt 0:00:07]} 9. Bg3 {[%emt 0:00:02]} h5 {[%emt 0:00:09]} 10. Bb5 {[%emt 0:03:46]} h4 {[%emt 0:00:24]} 11. Be5 {[%emt 0:01:44]} O-O {[%emt 0:00:12]} 12. Bxc6 {[%emt 0:04:06]} bxc6 {[%emt 0:00:06]} 13. Nge2 {[%emt 0:00:58]} Rb8 {[%emt 0:02:22]} 14. O-O {[%emt 0:10:02]} Bd6 {[%emt 0:04:11]} 15. f4 {[%emt 0:09:51]} Ng4 {[%emt 0:09:47]} 16. Rf3 {[%emt 0:02:00]} gxf4 {[%emt 0:00:21]} 17. exf4 {[%emt 0:07:46]} Qe7 {[%emt 0:03:56]} 18. h3 {[%emt 0:09:45]} Nh6 {[%emt 0:00:29]} 19. g4 {[%emt 0:00:04]} f6 {[%emt 0:00:53]} 20. Bxd6 {[%emt 0:00:27]} cxd6 {[%emt 0:00:06]} 21. Kf2 {[%emt 0:01:45]} f5 {[%emt 0:02:33]} 22. Re3 {[%emt 0:03:28]} Qd7 {[%emt 0:05:32]} 23. g5 {[%emt 0:10:59]} Nf7 {[%emt 0:00:07]} 24. Re1 {[%emt 0:00:32]} Nh8 {[%emt 0:02:14]} 25. b3 {[%emt 0:07:03]} Ng6 {[%emt 0:00:09]} 26. Qd2 {[%emt 0:01:21]} Qb7 {[%emt 0:08:31]} 27. Nc1 {[%emt 0:03:23]} Qb4 {[%emt 0:07:57]} 28. R3e2 {[%emt 0:06:23]} Bd7 {[%emt 0:03:08]} 29. Kg1 {[%emt 0:02:44]} Kf7 {[%emt 0:01:00]} 30. Kh2 {[%emt 0:01:03]} Rfe8 {[%emt 0:02:10]} 31. Rxe8 {[%emt 0:00:16]} Bxe8 {[%emt 0:00:07]} 32. Re3 {[%emt 0:03:17]} Bd7 {[%emt 0:15:54]} 33. N1e2 {[%emt 0:00:05]} Rf8 {[%emt 0:04:13]} 34. Kg1 {[%emt 0:00:56]} Bc8 {[%emt 0:01:52]} 35. Qd3 {[%emt 0:03:12]} Kg7 {[%emt 0:00:39]} 36. Kf2 {[%emt 0:00:47]} Qa5 {[%emt 0:00:38]} 37. Qc2 {[%emt 0:02:38]} Qb4 {[%emt 0:05:03]} 38. Na4 {[%emt 0:02:22]} Ba6 {[%emt 0:00:22]} 39. Nac3 {[%emt 0:03:08]} Bc8 {[%emt 0:03:53]} 40. Na4 {[%emt 0:00:21]} Ba6 {[%emt 0:01:23]} 41. Nac3 {[%emt 0:02:28]} 1/2-1/2

[Event "BL Meisterschaftsturnier 2020"]
[Site "Karlsruhe"]
[Date "2020.09.17"]
[Round "3.11"]
[White "Bluebaum, Matthias"]
[Black "Dragnev, Valentin"]
[Result "1/2-1/2"]
[ECO "D90"]
[WhiteElo "2660"]
[BlackElo "2553"]
[Annotator "ChessBase"]
[PlyCount "67"]
[EventDate "2020.09.16"]
[EventType "team-tourn"]
[EventCountry "GER"]
[WhiteTeam "Deizisau"]
[BlackTeam "Bayern Muenchen"]
[TimeControl "40/5400+30:1800+30"]

1. d4 {[%emt 0:00:00]} Nf6 {[%emt 0:00:00]} 2. c4 {[%emt 0:00:03]} g6 {[%emt 0:00:00]} 3. Nc3 {[%emt 0:01:16]} d5 {[%emt 0:00:00]} 4. Nf3 {[%emt 0:00:14]} Bg7 {[%emt 0:00:00]} 5. h3 {[%emt 0:00:06]} O-O {[%emt 0:00:21]} 6. cxd5 {[%emt 0:00:11]} Nxd5 {[%emt 0:00:09]} 7. e4 {[%emt 0:00:04]} Nxc3 {[%emt 0:00:06]} 8. bxc3 {[%emt 0:00:02]} c5 {[%emt 0:00:08]} 9. Be2 {[%emt 0:00:03]} b6 {[%emt 0:00:54]} 10. Be3 {[%emt 0:00:57]} Bb7 {[%emt 0:00:21]} 11. Qd3 {[%emt 0:00:06]} cxd4 {[%emt 0:00:35]} 12. cxd4 {[%emt 0:00:04]} Ba6 {[%emt 0:00:06]} 13. Qc2 {[%emt 0:02:06]} Qd7 {[%emt 0:00:31]} 14. Bxa6 {[%emt 0:02:32]} Nxa6 {[%emt 0:00:20]} 15. O-O {[%emt 0:00:07]} Rac8 {[%emt 0:06:27]} 16. Qb3 {[%emt 0:00:40]} Nb8 {[%emt 0:12:53]} 17. Rad1 {[%emt 0:05:12]} Nc6 {[%emt 0:03:57]} 18. d5 {[%emt 0:01:24]} Na5 {[%emt 0:00:14]} 19. Qb1 {[%emt 0:00:36]} Nc4 {[%emt 0:03:54]} 20. Bd4 {[%emt 0:04:13]} e5 {[%emt 0:02:44]} 21. dxe6 {[%emt 0:16:00]} Qxe6 {[%emt 0:00:21]} 22. Bxg7 {[%emt 0:04:01]} Kxg7 {[%emt 0:00:08]} 23. Rd5 {[%emt 0:00:07]} Rfd8 {[%emt 0:22:04]} 24. Qd3 {[%emt 0:01:05]} Rxd5 {[%emt 0:02:17]} 25. exd5 {[%emt 0:00:07]} Qf6 {[%emt 0:00:19]} 26. Nd2 {[%emt 0:11:46]} Nxd2 {[%emt 0:06:43]} 27. Qxd2 {[%emt 0:00:58]} Rd8 {[%emt 0:00:47]} 28. Rd1 {[%emt 0:02:14]} Rd6 {[%emt 0:00:12]} 29. Qe3 {[%emt 0:03:15]} h5 {[%emt 0:01:33]} 30. Rd4 {[%emt 0:02:39]} Rd7 {[%emt 0:03:12]} 31. Qd2 {[%emt 0:05:35]} Rd6 {[%emt 0:00:39]} 32. Qe3 {[%emt 0:07:33]} Rd7 {[%emt 0:02:12]} 33. Qd2 {[%emt 0:02:20]} Rd6 {[%emt 0:00:52]} 34. Qe3 {[%emt 0:00:05]} 1/2-1/2

[Event "BL Meisterschaftsturnier 2020"]
[Site "Karlsruhe"]
[Date "2020.09.17"]
[Round "3.12"]
[White "Studer, Noel"]
[Black "Keymer, Vincent"]
[Result "0-1"]
[ECO "B90"]
[WhiteElo "2573"]
[BlackElo "2568"]
[Annotator "ChessBase"]
[PlyCount "96"]
[EventDate "2020.09.16"]
[EventType "team-tourn"]
[EventCountry "GER"]
[WhiteTeam "Bayern Muenchen"]
[BlackTeam "Deizisau"]
[TimeControl "40/5400+30:1800+30"]

1. e4 {[%emt 0:00:00]} c5 {[%emt 0:00:49]} 2. Nf3 {[%emt 0:00:00]} d6 {[%emt 0:00:03]} 3. d4 {[%emt 0:00:00]} cxd4 {[%emt 0:00:04]} 4. Nxd4 {[%emt 0:00:00]} Nf6 {[%emt 0:00:05]} 5. Nc3 {[%emt 0:00:00]} a6 {[%emt 0:00:03]} 6. Be3 {[%emt 0:00:00]} e5 {[%emt 0:00:05]} 7. Nf3 {[%emt 0:00:02]} Be7 {[%emt 0:00:05]} 8. Bc4 {[%emt 0:00:05]} Be6 {[%emt 0:00:05]} 9. Bxe6 {[%emt 0:00:04]} fxe6 {[%emt 0:00:05]} 10. Ng5 {[%emt 0:00:03]} Qd7 {[%emt 0:00:22]} 11. Qf3 {[%emt 0:00:08]} Nc6 {[%emt 0:00:20]} 12. Qh3 {[%emt 0:00:23]} Nd8 {[%emt 0:00:05]} 13. Bb6 {[%emt 0:00:41]} h6 {[%emt 0:00:55]} 14. O-O-O {[%emt 0:00:34]} O-O {[%emt 0:00:09]} 15. Bxd8 {[%emt 0:00:05]} hxg5 {[%emt 0:00:03]} 16. Bxe7 {[%emt 0:00:07]} Qxe7 {[%emt 0:00:03]} 17. Qg3 {[%emt 0:00:35]} b5 {[%emt 0:01:22]} 18. f3 {[%emt 0:02:06]} g4 {[%emt 0:12:07]} 19. Rhe1 {[%emt 0:14:44]} gxf3 {[%emt 0:04:38]} 20. Qxf3 {[%emt 0:00:22]} Rac8 {[%emt 0:01:53]} 21. Qd3 {[%emt 0:11:18]} Rfd8 {[%emt 0:04:56]} 22. Kb1 {[%emt 0:02:58]} Rc4 {[%emt 0:03:07]} 23. a4 {[%emt 0:05:11]} Qe8 {[%emt 0:14:41]} 24. axb5 {[%emt 0:18:40]} axb5 {[%emt 0:00:27]} 25. b3 {[%emt 0:00:11]} Rc5 {[%emt 0:03:35]} 26. Na2 {[%emt 0:09:31]} d5 {[%emt 0:04:12]} 27. exd5 {[%emt 0:06:33]} Nxd5 {[%emt 0:06:14]} 28. Qg3 {[%emt 0:05:14]} Rdc8 29. Rxe5 {[%emt 0:07:29]} Rxc2 {[%emt 0:27:12]} 30. Rdxd5 {[%emt 0:15:55]} Qc6 {[%emt 0:01:42]} 31. Rd1 {[%emt 0:01:02]} Rxa2 {[%emt 0:02:48]} 32. Kxa2 {[%emt 0:00:11]} Qc2+ {[%emt 0:00:06]} 33. Ka3 {[%emt 0:00:05]} Qxd1 {[%emt 0:00:28]} 34. Qe3 {[%emt 0:01:13]} Qd6+ {[%emt 0:04:43]} 35. Kb2 {[%emt 0:00:55]} Ra8 {[%emt 0:00:20]} 36. Rxe6 {[%emt 0:00:52]} Qa3+ {[%emt 0:01:11]} 37. Kc3 {[%emt 0:00:13]} Rc8+ {[%emt 0:03:10]} 38. Kd4 {[%emt 0:00:26]} Qb2+ {[%emt 0:01:23]} 39. Ke4 {[%emt 0:00:57]} Qxg2+ {[%emt 0:03:03]} 40. Kd4 {[%emt 0:00:17]} Qb2+ {[%emt 0:02:08]} 41. Kd5 {[%emt 0:01:47]} Qg2+ {[%emt 0:06:24]} 42. Kd4 {[%emt 0:02:19]} Qg4+ {[%emt 0:03:32]} 43. Kd5 {[%emt 0:07:37]} Qd1+ {[%emt 0:04:22]} 44. Ke5 {[%emt 0:02:04]} Qc2 {[%emt 0:02:24]} 45. Qh3 {[%emt 0:13:09]} Rd8 {[%emt 0:03:45]} 46. Kf4 {[%emt 0:06:21]} Rd4+ {[%emt 0:00:46]} 47. Kg5 {[%emt 0:00:14]} Rd5+ {[%emt 0:00:05]} 48. Kf4 {[%emt 0:00:05]} Qf2+ {[%emt 0:00:20]} 0-1

[Event "BL Meisterschaftsturnier 2020"]
[Site "Karlsruhe"]
[Date "2020.09.17"]
[Round "3.13"]
[White "Vallejo Pons, Francisco"]
[Black "Jakubowski, Krzysztof"]
[Result "1-0"]
[ECO "B47"]
[WhiteElo "2710"]
[BlackElo "2481"]
[Annotator "ChessBase"]
[PlyCount "73"]
[EventDate "2020.09.16"]
[EventType "team-tourn"]
[EventCountry "GER"]
[WhiteTeam "Baden-Baden"]
[BlackTeam "SF Berlin"]
[TimeControl "40/5400+30:1800+30"]

1. e4 {[%emt 0:00:37]} c5 {[%emt 0:00:00]} 2. Nf3 {[%emt 0:00:07]} e6 {[%emt 0:00:00]} 3. d4 {[%emt 0:04:09]} cxd4 {[%emt 0:00:22]} 4. Nxd4 {[%emt 0:00:06]} Nc6 {[%emt 0:01:07]} 5. Nc3 {[%emt 0:00:05]} Qc7 {[%emt 0:00:12]} 6. Qd3 {[%emt 0:00:31]} Nf6 {[%emt 0:01:11]} 7. Ndb5 {[%emt 0:00:50]} Qb8 {[%emt 0:00:11]} 8. Qg3 {[%emt 0:00:28]} d6 {[%emt 0:00:17]} 9. Be3 {[%emt 0:00:31]} a6 {[%emt 0:00:31]} 10. Nd4 {[%emt 0:01:17]} h5 {[%emt 0:03:00]} 11. f3 {[%emt 0:05:57]} Ne5 {[%emt 0:07:16]} 12. O-O-O {[%emt 0:28:16]} b5 {[%emt 0:02:55]} 13. Bd3 {[%emt 0:01:55]} h4 {[%emt 0:15:17]} 14. Qe1 {[%emt 0:03:13]} h3 {[%emt 0:00:35]} 15. g4 {[%emt 0:03:58]} Nfd7 {[%emt 0:02:07]} 16. Kb1 {[%emt 0:05:47]} g6 {[%emt 0:05:42]} 17. g5 {[%emt 0:07:25]} b4 {[%emt 0:09:36]} 18. Nce2 {[%emt 0:00:55]} Nc5 {[%emt 0:03:06]} 19. Nc1 {[%emt 0:04:52]} Bd7 {[%emt 0:06:11]} 20. Rf1 {[%emt 0:03:44]} a5 21. Be2 {[%emt 0:02:39]} Bg7 {[%emt 0:13:14]} 22. f4 {[%emt 0:02:44]} Nc6 {[%emt 0:00:18]} 23. e5 {[%emt 0:06:12]} Nd8 {[%emt 0:11:04]} 24. exd6 {[%emt 0:02:17]} Na4 {[%emt 0:00:13]} 25. Nd3 {[%emt 0:02:23]} Qxd6 {[%emt 0:00:59]} 26. Ne5 {[%emt 0:01:03]} Bxe5 {[%emt 0:00:56]} 27. fxe5 {[%emt 0:03:05]} Qxe5 {[%emt 0:00:50]} 28. Bf4 {[%emt 0:00:24]} Qc5 {[%emt 0:02:08]} 29. Nb3 {[%emt 0:00:32]} Qa7 {[%emt 0:00:54]} 30. Be5 {[%emt 0:01:42]} Rh7 {[%emt 0:00:18]} 31. Rf4 {[%emt 0:02:04]} f5 {[%emt 0:06:01]} 32. gxf6 {[%emt 0:01:04]} Nf7 {[%emt 0:00:08]} 33. Bd3 {[%emt 0:01:01]} g5 {[%emt 0:02:04]} 34. Rd4 {[%emt 0:01:34]} Rh6 {[%emt 0:00:57]} 35. Bc4 {[%emt 0:01:12]} Nb6 {[%emt 0:03:06]} 36. Rxd7 {[%emt 0:02:14]} Nxd7 {[%emt 0:00:08]} 37. Bd4 {[%emt 0:00:11]} 1-0

[Event "BL Meisterschaftsturnier 2020"]
[Site "Karlsruhe"]
[Date "2020.09.17"]
[Round "3.13"]
[White "Lagarde, Maxime"]
[Black "Bischoff, Klaus"]
[Result "1/2-1/2"]
[ECO "C02"]
[WhiteElo "2657"]
[BlackElo "2503"]
[Annotator "ChessBase"]
[PlyCount "45"]
[EventDate "2020.09.16"]
[EventType "team-tourn"]
[EventCountry "GER"]
[WhiteTeam "Deizisau"]
[BlackTeam "Bayern Muenchen"]
[TimeControl "40/5400+30:1800+30"]

1. e4 {[%emt 0:00:00]} e6 {[%emt 0:00:47]} 2. d4 {[%emt 0:00:00]} d5 {[%emt 0:00:08]} 3. e5 {[%emt 0:00:02]} c5 {[%emt 0:00:12]} 4. c3 {[%emt 0:00:03]} Nc6 {[%emt 0:00:20]} 5. Nf3 {[%emt 0:00:06]} Bd7 {[%emt 0:00:17]} 6. Be2 {[%emt 0:00:14]} Nge7 {[%emt 0:00:50]} 7. Na3 {[%emt 0:00:14]} cxd4 {[%emt 0:02:44]} 8. cxd4 {[%emt 0:00:25]} Nc8 {[%emt 0:01:07]} 9. O-O {[%emt 0:00:56]} Be7 {[%emt 0:03:31]} 10. Re1 {[%emt 0:00:15]} h6 {[%emt 0:05:13]} 11. Bd2 {[%emt 0:06:23]} a6 {[%emt 0:05:54]} 12. Nc2 {[%emt 0:03:55]} a5 {[%emt 0:04:21]} 13. Bc3 {[%emt 0:10:39]} N8a7 {[%emt 0:04:44]} 14. Qd2 {[%emt 0:11:52]} Qb6 {[%emt 0:05:51]} 15. h4 {[%emt 0:08:40]} Nb4 {[%emt 0:04:25]} 16. Ne3 {[%emt 0:17:05]} Bb5 {[%emt 0:05:43]} 17. a3 {[%emt 0:03:07]} Bxe2 {[%emt 0:01:14]} 18. Rxe2 {[%emt 0:03:54]} Nbc6 {[%emt 0:00:13]} 19. Rc1 {[%emt 0:06:27]} Qb5 {[%emt 0:05:13]} 20. Ree1 {[%emt 0:06:34]} Nc8 {[%emt 0:04:43]} 21. Nf1 {[%emt 0:03:01]} Nb6 {[%emt 0:02:59]} 22. Ng3 {[%emt 0:04:23]} Kd7 {[%emt 0:06:40]} 23. Nh5 {[%emt 0:06:15]} 1/2-1/2

[Event "BL Meisterschaftsturnier 2020"]
[Site "Karlsruhe"]
[Date "2020.09.17"]
[Round "3.14"]
[White "Fedorovsky, Michael"]
[Black "Kollars, Dmitrij"]
[Result "1/2-1/2"]
[ECO "E46"]
[WhiteElo "2422"]
[BlackElo "2585"]
[Annotator "RC"]
[PlyCount "81"]
[EventDate "2020.09.16"]
[EventType "team-tourn"]
[EventCountry "GER"]
[WhiteTeam "Bayern Muenchen"]
[BlackTeam "Deizisau"]
[TimeControl "40/5400+30:1800+30"]

1. d4 {[%emt 0:00:00]} Nf6 {[%emt 0:00:00]} 2. c4 {[%emt 0:00:00]} e6 {[%emt 0:00:00]} 3. Nc3 {[%emt 0:00:00]} Bb4 {[%emt 0:00:02]} 4. e3 {[%emt 0:00:00]} O-O {[%emt 0:00:26]} 5. Nge2 {[%emt 0:00:00]} Re8 {[%emt 0:00:47]} 6. a3 {[%emt 0:00:33]} Bf8 {[%emt 0:00:33]} 7. Nf4 {[%emt 0:08:42]} d6 {[%emt 0:00:23]} 8. Be2 {[%emt 0:02:05]} Nbd7 {[%emt 0:04:31]} 9. O-O {[%emt 0:01:12]} e5 {[%emt 0:00:37]} 10. Nfd5 {[%emt 0:03:45]} c6 {[%emt 0:08:50]} 11. Nxf6+ {[%emt 0:00:41]} Nxf6 {[%emt 0:00:26]} 12. b4 {[%emt 0:02:58]} g6 {[%emt 0:09:55]} 13. Bb2 {[%emt 0:04:38]} Bg7 {[%emt 0:01:02]} 14. d5 {[%emt 0:07:30]} Bf5 {[%emt 0:11:49]} 15. Qd2 {[%emt 0:10:11]} Qe7 {[%emt 0:02:14]} 16. dxc6 {[%emt 0:09:02]} bxc6 {[%emt 0:00:07]} 17. b5 {[%emt 0:01:30]} cxb5 {[%emt 0:03:53]} 18. cxb5 {[%emt 0:02:55]} Rad8 {[%emt 0:00:37]} 19. Nd5 {[%emt 0:03:43]} Nxd5 {[%emt 0:02:26]} 20. Qxd5 {[%emt 0:01:09]} Be6 {[%emt 0:00:17]} 21. Qd2 {[%emt 0:00:40]} d5 {[%emt 0:00:50]} 22. a4 {[%emt 0:02:36]} d4 {[%emt 0:18:16]} 23. exd4 {[%emt 0:00:26]} exd4 {[%emt 0:00:20]} 24. Bd3 {[%emt 0:01:36]} Bd5 {[%emt 0:10:41]} 25. Rfe1 {[%emt 0:08:08]} Qd7 {[%emt 0:01:32]} 26. h3 {[%emt 0:04:18]} Bb7 {[%emt 0:03:58]} 27. Qg5 {[%emt 0:05:43]} Ba8 {[%emt 0:10:18]} 28. Rac1 {[%emt 0:02:13]} h6 {[%emt 0:01:31]} 29. Rxe8+ {[%emt 0:02:51]} Rxe8 {[%emt 0:00:12]} 30. Qc5 {[%emt 0:01:10]} Kh7 {[%emt 0:00:23]} 31. Bf1 {[%emt 0:05:55]} Rd8 {[%emt 0:03:12]} 32. Qc7 {[%emt 0:03:43]} d3 {[%emt 0:02:19]} 33. Qxd7 {[%emt 0:02:25]} Rxd7 {[%emt 0:00:01]} 34. Bxg7 {[%emt 0:00:09]} Kxg7 35. Rd1 {[%emt 0:02:06]} d2 {[%emt 0:00:39]} 36. f3 {[%emt 0:00:03]} Rd4 {[%emt 0:01:30]} 37. Kf2 {[%emt 0:00:11]} Bd5 {[%emt 0:01:10]} 38. Ke3 {[%emt 0:01:12]} Rxa4 {[%emt 0:00:10]} 39. Rxd2 {[%emt 0:00:17]} Be6 {[%emt 0:01:29]} 40. Rd4 {[%emt 0:02:35]} Ra3+ {[%emt 0:01:09]} 41. Kf2 {[%emt 0:07:38]} 1/2-1/2

[Event "BL Meisterschaftsturnier 2020"]
[Site "Karlsruhe"]
[Date "2020.09.17"]
[Round "3.14"]
[White "Schmidek, Emil"]
[Black "Naiditsch, Arkadij"]
[Result "0-1"]
[ECO "E45"]
[WhiteElo "2395"]
[BlackElo "2624"]
[Annotator "ChessBase"]
[PlyCount "60"]
[EventDate "2020.09.16"]
[EventType "team-tourn"]
[EventCountry "GER"]
[WhiteTeam "SF Berlin"]
[BlackTeam "Baden-Baden"]
[TimeControl "40/5400+30:1800+30"]

1. d4 {[%emt 0:00:00]} Nf6 {[%emt 0:00:00]} 2. c4 {[%emt 0:00:00]} e6 {[%emt 0:00:01]} 3. Nc3 {[%emt 0:00:00]} Bb4 {[%emt 0:00:21]} 4. e3 {[%emt 0:00:00]} b6 {[%emt 0:01:52]} 5. Nge2 {[%emt 0:00:03]} Ba6 {[%emt 0:05:24]} 6. a3 {[%emt 0:02:27]} Be7 {[%emt 0:00:20]} 7. Nf4 {[%emt 0:04:41]} O-O {[%emt 0:01:13]} 8. Bd3 {[%emt 0:15:45]} d5 {[%emt 0:03:42]} 9. cxd5 {[%emt 0:02:58]} Bxd3 {[%emt 0:00:20]} 10. Qxd3 {[%emt 0:02:34]} exd5 {[%emt 0:00:11]} 11. O-O {[%emt 0:01:17]} Qd7 {[%emt 0:12:40]} 12. Bd2 {[%emt 0:06:44]} Nc6 {[%emt 0:04:14]} 13. b4 {[%emt 0:02:03]} Nd8 {[%emt 0:02:02]} 14. f3 {[%emt 0:18:07]} Ne6 {[%emt 0:01:21]} 15. Nxe6 {[%emt 0:01:43]} fxe6 {[%emt 0:00:08]} 16. b5 {[%emt 0:02:13]} Rac8 {[%emt 0:03:18]} 17. Ne2 {[%emt 0:04:21]} c5 {[%emt 0:02:26]} 18. bxc6 {[%emt 0:00:05]} Rxc6 {[%emt 0:00:31]} 19. Bb4 {[%emt 0:04:41]} Rfc8 {[%emt 0:02:29]} 20. Rfc1 {[%emt 0:04:19]} Rc4 {[%emt 0:08:52]} 21. Rxc4 {[%emt 0:05:13]} dxc4 {[%emt 0:08:56]} 22. Qd2 {[%emt 0:02:33]} Bxb4 {[%emt 0:02:24]} 23. axb4 {[%emt 0:02:01]} Nd5 {[%emt 0:03:42]} 24. Ra3 {[%emt 0:11:26]} Qe7 {[%emt 0:03:17]} 25. Nf4 {[%emt 0:06:42]} Nxf4 {[%emt 0:02:29]} 26. exf4 {[%emt 0:00:06]} a5 {[%emt 0:00:10]} 27. Re3 {[%emt 0:00:37]} axb4 {[%emt 0:02:41]} 28. Qe2 {[%emt 0:00:33]} c3 {[%emt 0:00:53]} 29. Rxe6 {[%emt 0:00:05]} Qf7 {[%emt 0:00:47]} 30. Re7 {[%emt 0:01:11]} c2 {[%emt 0:00:36]} 0-1

[Event "BL Meisterschaftsturnier 2020"]
[Site "Karlsruhe"]
[Date "2020.09.17"]
[Round "3.15"]
[White "Bacrot, Etienne"]
[Black "Florstedt, Johannes"]
[Result "1-0"]
[ECO "A33"]
[WhiteElo "2673"]
[BlackElo "2353"]
[Annotator "ChessBase"]
[PlyCount "61"]
[EventDate "2020.09.16"]
[EventType "team-tourn"]
[EventCountry "GER"]
[WhiteTeam "Baden-Baden"]
[BlackTeam "SF Berlin"]
[TimeControl "40/5400+30:1800+30"]

1. Nf3 {[%emt 0:00:46]} c5 {[%emt 0:00:22]} 2. c4 {[%emt 0:00:08]} Nc6 {[%emt 0:00:04]} 3. d4 {[%emt 0:01:54]} cxd4 {[%emt 0:00:07]} 4. Nxd4 {[%emt 0:00:04]} Nf6 {[%emt 0:00:12]} 5. Nc3 {[%emt 0:00:08]} e6 {[%emt 0:00:04]} 6. a3 {[%emt 0:00:38]} Bc5 {[%emt 0:01:09]} 7. Nb3 {[%emt 0:00:32]} Bb6 {[%emt 0:00:06]} 8. c5 {[%emt 0:00:43]} Bc7 {[%emt 0:01:02]} 9. g3 {[%emt 0:00:17]} O-O {[%emt 0:11:17]} 10. Bg2 {[%emt 0:00:15]} b6 {[%emt 0:00:06]} 11. O-O {[%emt 0:02:02]} Rb8 {[%emt 0:03:55]} 12. cxb6 {[%emt 0:16:26]} axb6 {[%emt 0:04:25]} 13. Nb5 {[%emt 0:01:16]} Be5 {[%emt 0:08:22]} 14. f4 {[%emt 0:09:24]} Bc7 {[%emt 0:00:09]} 15. Nxc7 {[%emt 0:06:17]} Qxc7 {[%emt 0:00:05]} 16. f5 {[%emt 0:00:05]} Bb7 {[%emt 0:14:30]} 17. Bf4 {[%emt 0:01:09]} e5 {[%emt 0:00:13]} 18. Bg5 {[%emt 0:00:07]} Rbc8 {[%emt 0:28:15]} 19. Bxf6 {[%emt 0:03:06]} gxf6 {[%emt 0:00:05]} 20. Rc1 {[%emt 0:00:20]} Rfd8 {[%emt 0:00:16]} 21. Bd5 {[%emt 0:13:02]} Qb8 {[%emt 0:00:56]} 22. Rc4 {[%emt 0:11:16]} Ne7 {[%emt 0:01:12]} 23. Rg4+ {[%emt 0:01:13]} Kf8 {[%emt 0:00:05]} 24. Bxb7 {[%emt 0:01:13]} Qxb7 {[%emt 0:00:07]} 25. Qd2 {[%emt 0:01:16]} Ke8 {[%emt 0:04:26]} 26. Qh6 {[%emt 0:03:22]} Rc2 {[%emt 0:08:16]} 27. Nd2 {[%emt 0:10:35]} d5 {[%emt 0:02:21]} 28. Qxf6 {[%emt 0:03:03]} Rxd2 {[%emt 0:04:29]} 29. Rg7 {[%emt 0:00:58]} Nc6 {[%emt 0:00:13]} 30. Rc1 {[%emt 0:01:40]} Qe7 {[%emt 0:07:11]} 31. Rg8+ {[%emt 0:00:14]} 1-0